[Event "Hungarian Youth-ch U14 2022"]
[Site "Eger"]
[Date "2022.07.25"]
[Round "3.8"]
[White "Horvath, Greta"]
[Black "Toth, Timea"]
[Result "1-0"]
[ECO "B35"]
[WhiteElo "1346"]
[BlackElo "1964"]
[Annotator "TA"]
[PlyCount "106"]
[EventDate "2022.07.21"]
[EventType "tourn"]
[EventCountry "HUN"]
[SourceTitle "playchess.com"]
[Source "ChessBase"]
[SourceQuality "1"]
[TimeControl "40/5400+30:1800+30"]

{[%evp 20,106,16,10,92,17,15,0,13,0,10,-41,0,0,0,-11,-10,-10,-12,-10,0,0,0,-12,6,-4,9,-11,-4,-29,-13,-32,-10,-13,0,-23,-8,-27,92,68,103,96,94,101,297,287,745,745,738,697,704,704,704,704,704,697,697,630,630,630,628,604,697,672,793,733,791,781,773,736,1045,1002,1164,1162,1828,1782,1640,1560,7058,7742,5618,2889,12840,1939,12843,12843,12844,12844,29992]} 1. e4 {[%emt 0:00:34]} c5 {[%emt 0:00:32]} 2. Nf3 {[%emt 0:00:08]} Nc6 {[%emt 0:00:03]} 3. d4 {[%emt 0:00:10]} cxd4 {[%emt 0:00:02]} 4. Nxd4 {[%emt 0:00:07]} g6 {[%emt 0:00:03]} 5. Nc3 {[%emt 0:00:10]} Bg7 {[%emt 0:00:03]} 6. Be3 {[%emt 0:00:10]} Nf6 {[%emt 0:00:02]} 7. Bc4 {[%emt 0:00:11]} O-O {[%emt 0:00:05]} 8. Bb3 {[%emt 0:00:08]} d6 {[%emt 0:00:05]} 9. f3 {[%emt 0:00:08]} Bd7 {[%emt 0:00:26]} 10. Qd2 {[%emt 0:00:45]} Nxd4 {[%emt 0:01:43]} 11. Bxd4 {[%emt 0:00:29]} Bc6 {[%emt 0:00:53] B77: Sicilian Dragon: Yugoslav Attack, 9 Bc4 sidelines.} (11... b5 $11 {remains equal.}) 12. O-O {[%emt 0:10:28] White is more active.} ({White should play} 12. h4 $16) 12... Nd7 {[%emt 0:04:01]} 13. Be3 {[%emt 0:06:47] [#]} Nc5 $146 {[%emt 0:21:14] The position is equal.} ({Predecessor:} 13... a5 14. a4 Nc5 15. Kh1 Qb6 16. Qf2 Rac8 17. Rad1 Qa6 18. Bd4 Bxd4 19. Qxd4 b5 20. axb5 Bxb5 {0-1 (46) Munoz Pantoja,M (2482)-Iturrizaga Bonelli,E (2603) Badalona 2011}) 14. Bc4 {[%emt 0:09:04]} Rc8 {[%emt 0:53:59]} 15. Bd4 {[%emt 0:13:11]} (15. Rad1 $11) 15... Bxd4+ {[%emt 0:02:00]} (15... Qb6 $5 {[%cal Rc5e4]} 16. Ne2 Bxe4 17. fxe4 Nxe4 $15) 16. Qxd4 {[%emt 0:00:22]} Qb6 {[%emt 0:03:32]} 17. b3 {[%emt 0:07:31]} Nd7 {[%emt 0:06:03]} 18. Qf2 {[%emt 0:07:40]} Qxf2+ {[%emt 0:00:35]} 19. Rxf2 {[%emt 0:00:23]} Nb6 {[%emt 0:00:12]} 20. Bd3 {[%emt 0:01:54]} a6 {[%emt 0:00:59]} 21. Nd1 {[%emt 0:01:55]} Nd7 {[%emt 0:00:27]} 22. c4 {[%emt 0:02:37]} Rc7 {[%emt 0:00:23]} 23. b4 {[%emt 0:06:08]} b6 {[%emt 0:01:06]} 24. Rc2 {[%emt 0:02:35]} Rfc8 {[%emt 0:01:07]} 25. Nb2 {[%emt 0:02:16]} Bb7 {[%emt 0:00:34]} 26. Rac1 {[%emt 0:03:09][%cal Ba1c1,Bc1d1,Bd1d8][%mdl 32]} Ne5 {[%emt 0:00:50]} 27. a3 {[%emt 0:03:48]} a5 {[%emt 0:00:48]} 28. b5 {[%emt 0:02:00]} e6 {[%emt 0:00:28]} (28... f5 $11 29. exf5 Nxd3 30. Nxd3 gxf5) 29. Be2 {[%emt 0:02:20]} Nd7 {[%emt 0:00:11]} 30. Rd1 {[%emt 0:02:14]} d5 {[%emt 0:00:56]} 31. exd5 {[%emt 0:02:37]} Bxd5 {[%emt 0:01:32] [#] A mistake that costs the game.} 32. Rcd2 $18 {[%emt 0:00:40]} Bxc4 {[%emt 0:00:35]} (32... Nf6 33. Na4 (33. cxd5 Nxd5 34. Na4 Rc1 $18) 33... Kg7 34. cxd5 Nxd5 35. Rxd5 exd5 36. Nxb6 Rb8) 33. Nxc4 {[%emt 0:00:33] White is clearly winning.} Nf6 {[%emt 0:00:34]} 34. Rd8+ {[%emt 0:00:24]} Rxd8 {[%emt 0:00:00]} 35. Rxd8+ {[%emt 0:00:00]} Kg7 {[%emt 0:00:00]} 36. Nxb6 {[%emt 0:01:54]} Rb7 {[%emt 0:00:03]} 37. Na4 {[%emt 0:00:13]} Nd5 {[%emt 0:00:10]} 38. b6 {[%emt 0:01:40]} Nxb6 {[%emt 0:01:02]} 39. Nxb6 {[%emt 0:00:00]} Rxb6 {[%emt 0:00:00][%mdl 4096] Endgame KRB-KR} 40. Ra8 {[%emt 0:00:00]} a4 {[%emt 0:00:00]} 41. Rxa4 {[%emt 0:00:51]} Rb3 {[%emt 0:00:24]} 42. Ra8 {[%emt 0:02:01]} Kf6 {[%emt 0:00:35]} 43. a4 {[%emt 0:01:26][%cal Ba3a4,Ba4a5,Ba5a6][%mdl 32]} Ra3 {[%emt 0:00:05]} 44. a5 {[%emt 0:00:09]} Ke7 {[%emt 0:00:08]} 45. a6 {[%emt 0:00:16]} Kd6 {[%emt 0:00:22]} 46. Ra7 {[%emt 0:00:28]} f5 {[%emt 0:00:17]} 47. Rxh7 {[%emt 0:00:55]} g5 {[%emt 0:00:35]} 48. Rg7 {[%emt 0:02:03]} g4 {[%emt 0:00:06]} 49. fxg4 {[%emt 0:00:34]} f4 {[%emt 0:00:05]} 50. Bf3 {[%emt 0:00:47]} Rxa6 {[%emt 0:00:16]} 51. g5 {[%emt 0:00:48] [#] Strongly threatening h4.} Ke5 {[%emt 0:00:19]} 52. h4 {[%emt 0:01:49][%cal Bh2h4,Bh4h5][%mdl 32] Intending h5 and mate.} Kf5 {[%emt 0:00:13]} 53. h5 {[%emt 0:04:00] h6 would kill now.} Ra8 {[%emt 0:00:17] Weighted Error Value: White=0.20 (precise) /Black=0.37} 1-0

[Event "Hungarian Youth-ch U14 2022"]
[Site "Eger"]
[Date "2022.07.25"]
[Round "3.9"]
[White "Beznicza, Mira"]
[Black "Balazs, Sztella Anna"]
[Result "1-0"]
[ECO "C60"]
[WhiteElo "1608"]
[BlackElo "1663"]
[Annotator "NA RC COMBH"]
[PlyCount "89"]
[EventDate "2022.07.21"]
[EventType "tourn"]
[EventCountry "HUN"]
[SourceTitle "playchess.com"]
[Source "ChessBase"]
[SourceQuality "1"]
[TimeControl "40/5400+30:1800+30"]

1. e4 {[%emt 0:00:36]} e5 {[%emt 0:00:34]} 2. Nf3 {[%emt 0:00:19]} Nc6 {[%emt 0:00:04]} 3. Bb5 {[%emt 0:00:22]} g6 {[%emt 0:00:06]} 4. d4 {[%emt 0:03:20]} exd4 {[%emt 0:00:38]} 5. Nxd4 {[%emt 0:02:35]} Bg7 {[%emt 0:00:53]} 6. Nxc6 {[%emt 0:02:06]} bxc6 {[%emt 0:00:42]} 7. Bc4 {[%emt 0:00:32]} h6 {[%emt 0:02:14]} 8. Qf3 {[%emt 0:12:25]} Nf6 {[%emt 0:05:16]} 9. Nc3 {[%emt 0:04:20]} O-O {[%emt 0:06:52]} 10. O-O {[%emt 0:06:23]} Bb7 {[%emt 0:09:01]} 11. e5 {[%emt 0:08:11]} Nh7 {[%emt 0:03:44]} 12. Qd3 {[%emt 0:06:38]} d5 {[%emt 0:08:14]} 13. exd6 {[%emt 0:01:35]} cxd6 {[%emt 0:00:20]} 14. Rd1 {[%emt 0:13:37]} Qa5 {[%emt 0:20:09]} 15. Bd2 {[%emt 0:05:49]} Qh5 {[%emt 0:06:39]} 16. Ne2 {[%emt 0:04:57]} d5 {[%emt 0:02:37]} 17. Bb3 {[%emt 0:02:25]} a5 {[%emt 0:05:07]} 18. Ng3 {[%emt 0:04:09]} Qg4 {[%emt 0:01:21]} 19. h3 {[%emt 0:02:49]} Qh4 {[%emt 0:03:16]} 20. c3 {[%emt 0:04:55]} f5 {[%emt 0:06:02]} 21. f4 {[%emt 0:02:44]} Ba6 {[%emt 0:02:18]} 22. Qe3 {[%emt 0:02:39]} Rfe8 {[%emt 0:00:48]} 23. Qf3 {[%emt 0:00:49]} Bb7 {[%emt 0:03:59]} 24. Re1 {[%emt 0:01:48]} Qf6 {[%emt 0:02:52]} 25. Be3 {[%emt 0:01:30]} a4 {[%emt 0:01:25]} 26. Bc2 {[%emt 0:01:01]} Qd6 {[%emt 0:01:06]} 27. Bd4 {[%emt 0:01:39]} Bxd4+ {[%emt 0:02:05]} 28. cxd4 {[%emt 0:00:06]} Rxe1+ {[%emt 0:00:47]} 29. Rxe1 {[%emt 0:00:09]} Nf6 {[%emt 0:00:32]} 30. Bxf5 {[%emt 0:01:35]} gxf5 {[%emt 0:01:23]} 31. Nxf5 {[%emt 0:00:07]} Qf8 {[%emt 0:01:14]} 32. Qg3+ {[%emt 0:00:06]} Kh8 {[%emt 0:00:05]} 33. Re7 {[%emt 0:01:26]} Bc8 {[%emt 0:00:47]} 34. Nh4 {[%emt 0:00:54]} Nh5 {[%emt 0:01:09]} 35. Ng6+ {[%emt 0:00:11]} Kg8 {[%emt 0:00:03]} 36. Nxf8+ {[%emt 0:00:09]} Nxg3 {[%emt 0:00:03]} 37. Ng6 {[%emt 0:01:00]} Bf5 {[%emt 0:00:41]} 38. Ne5 {[%emt 0:00:29]} Ne2+ {[%emt 0:00:08]} 39. Kf2 {[%emt 0:00:17]} Nxd4 {[%emt 0:00:08]} 40. g4 {[%emt 0:00:00]} Bb1 {[%emt 0:00:00]} 41. f5 {[%emt 0:00:42]} Bxa2 {[%emt 0:00:52]} 42. f6 {[%emt 0:00:14]} Rd8 {[%emt 0:02:37]} 43. Rg7+ {[%emt 0:00:33]} Kf8 {[%emt 0:00:06]} 44. Ng6+ {[%emt 0:00:09]} Ke8 {[%emt 0:00:12]} 45. Re7# {[%emt 0:00:09]} 1-0

[Event "Hungarian Youth-ch U14 2022"]
[Site "Eger"]
[Date "2022.07.25"]
[Round "3.10"]
[White "Eros, Vivien"]
[Black "Szarvas, Nora Orsolya"]
[Result "0-1"]
[ECO "B22"]
[WhiteElo "1599"]
[BlackElo "1692"]
[Annotator "NA RC COMBH"]
[PlyCount "102"]
[EventDate "2022.07.21"]
[EventType "tourn"]
[EventCountry "HUN"]
[SourceTitle "playchess.com"]
[Source "ChessBase"]
[SourceQuality "1"]
[TimeControl "40/5400+30:1800+30"]

1. e4 {[%emt 0:00:32]} c5 {[%emt 0:00:36]} 2. c3 {[%emt 0:00:04]} Nf6 {[%emt 0:00:18]} 3. e5 {[%emt 0:00:04]} Nd5 {[%emt 0:00:07]} 4. Nf3 {[%emt 0:00:07]} Nc6 {[%emt 0:02:06]} 5. Bc4 {[%emt 0:00:07]} Nb6 {[%emt 0:13:03]} 6. Bb3 {[%emt 0:00:07]} e6 {[%emt 0:00:41]} 7. d4 {[%emt 0:05:22]} cxd4 {[%emt 0:01:05]} 8. cxd4 {[%emt 0:00:06]} d6 {[%emt 0:00:42]} 9. exd6 {[%emt 0:04:20]} Bxd6 {[%emt 0:00:49]} 10. Nc3 {[%emt 0:00:48]} O-O {[%emt 0:04:47]} 11. O-O {[%emt 0:00:07]} Be7 {[%emt 0:23:34]} 12. Bc2 {[%emt 0:08:26]} Nb4 {[%emt 0:03:14]} 13. Bb1 {[%emt 0:03:00]} N4d5 {[%emt 0:08:12]} 14. Nxd5 {[%emt 0:03:37]} Qxd5 {[%emt 0:02:10]} 15. Qd3 {[%emt 0:01:18]} g6 {[%emt 0:03:46]} 16. Re1 {[%emt 0:04:43]} Bf6 {[%emt 0:04:34]} 17. Bh6 {[%emt 0:07:29]} Rd8 {[%emt 0:00:43]} 18. Re4 {[%emt 0:25:29]} Qh5 {[%emt 0:10:37]} 19. Qd2 {[%emt 0:05:53]} Nc4 {[%emt 0:06:25]} 20. Qf4 {[%emt 0:11:19]} Be7 {[%emt 0:06:08]} 21. b3 {[%emt 0:05:01]} e5 {[%emt 0:03:36]} 22. Qc1 {[%emt 0:05:22]} Ba3 {[%emt 0:02:35]} 23. Qxc4 {[%emt 0:02:31]} Qxh6 {[%emt 0:00:10]} 24. Bd3 {[%emt 0:01:45]} Be6 {[%emt 0:00:16]} 25. Qc2 {[%emt 0:00:50]} Rac8 {[%emt 0:00:09]} 26. Qd1 {[%emt 0:01:01]} Bb2 {[%emt 0:00:12]} 27. Rb1 {[%emt 0:00:44]} Bxd4 {[%emt 0:00:10]} 28. Qe2 {[%emt 0:01:50]} Bf5 {[%emt 0:00:37]} 29. Rh4 {[%emt 0:00:51]} Bxd3 {[%emt 0:00:09]} 30. Qxd3 {[%emt 0:00:40]} Qxh4 {[%emt 0:00:37]} 31. Nxh4 {[%emt 0:00:07]} Bxf2+ {[%emt 0:00:05]} 32. Kxf2 {[%emt 0:00:07]} Rxd3 {[%emt 0:00:04]} 33. Rb2 {[%emt 0:00:19]} e4 {[%emt 0:00:18]} 34. Re2 {[%emt 0:00:28]} f5 {[%emt 0:00:10]} 35. g3 {[%emt 0:00:42]} Rcd8 {[%emt 0:00:09]} 36. Ng2 {[%emt 0:00:51]} Rd2 {[%emt 0:00:07]} 37. Nf4 {[%emt 0:00:29]} Rxe2+ {[%emt 0:00:19]} 38. Kxe2 {[%emt 0:00:06]} Kf7 {[%emt 0:00:10]} 39. Ke3 {[%emt 0:00:16]} Kf6 {[%emt 0:00:20]} 40. h4 {[%emt 0:00:00]} Rd6 {[%emt 0:00:00]} 41. Ke2 {[%emt 0:01:12]} g5 {[%emt 0:01:56]} 42. Nh3 {[%emt 0:00:48]} h6 {[%emt 0:00:13]} 43. h5 {[%emt 0:01:36]} Ra6 {[%emt 0:00:13]} 44. a4 {[%emt 0:02:12]} Rb6 {[%emt 0:00:05]} 45. Nf2 {[%emt 0:00:17]} Rxb3 {[%emt 0:00:11]} 46. g4 {[%emt 0:00:08]} Ra3 {[%emt 0:00:35]} 47. a5 {[%emt 0:00:41]} Rxa5 {[%emt 0:00:04]} 48. Ke3 {[%emt 0:00:22]} Ra3+ {[%emt 0:00:10]} 49. Ke2 {[%emt 0:00:07]} Ra2+ {[%emt 0:00:09]} 50. Ke1 {[%emt 0:00:19]} Rxf2 {[%emt 0:00:07]} 51. Kxf2 {[%emt 0:00:13]} a5 0-1

[Event "Hungarian Youth-ch U14 2022"]
[Site "Eger"]
[Date "2022.07.26"]
[Round "4.1"]
[White "Szegedy, Matyas"]
[Black "Matyassy, Lazar"]
[Result "0-1"]
[ECO "B67"]
[WhiteElo "2152"]
[BlackElo "2132"]
[Annotator "TA"]
[PlyCount "70"]
[EventDate "2022.07.21"]
[EventType "tourn"]
[EventCountry "HUN"]
[SourceTitle "playchess.com"]
[Source "ChessBase"]
[SourceQuality "1"]
[TimeControl "40/5400+30:1800+30"]

{[%evp 23,70,54,53,21,40,9,0,24,33,22,20,-12,29,31,29,0,0,0,0,-187,-190,-182,-186,-164,-125,-486,-449,-455,-423,-414,-409,-616,-600,-639,-534,-546,-529,-703,-662,-1200,-1174,-1215,-1215,-1166,-1101,-1883,-2456,-1718,-1115]} 1. e4 {[%emt 0:00:40]} c5 {[%emt 0:00:38]} 2. Nf3 {[%emt 0:00:10]} d6 {[%emt 0:00:11]} 3. d4 {[%emt 0:00:19]} cxd4 {[%emt 0:00:06]} 4. Nxd4 {[%emt 0:00:07]} Nf6 {[%emt 0:00:06]} 5. Nc3 {[%emt 0:00:10]} Nc6 {[%emt 0:00:10]} 6. Bg5 {[%emt 0:01:34]} e6 {[%emt 0:00:09]} 7. Qd2 {[%emt 0:00:12]} a6 {[%emt 0:00:05]} 8. O-O-O {[%emt 0:00:28]} Bd7 {[%emt 0:00:10]} 9. f4 {[%emt 0:00:51]} b5 {[%emt 0:00:19]} 10. Bxf6 {[%emt 0:00:31]} gxf6 {[%emt 0:00:13]} 11. Kb1 {[%emt 0:00:11]} Qb6 {[%emt 0:00:29]} 12. Nce2 {[%emt 0:01:02]} h5 {[%emt 0:14:48]} 13. h4 {[%emt 0:04:06] 13.g3 is not played anymore. B67: Sicilian: Richter-Rauzer: 7...a6 8 0-0-0 Bd7, lines without 9 f4 Be7.} b4 {[%emt 0:16:08] [#]} 14. g3 $146 {[%emt 0:13:58]} ({Predecessor:} 14. Rh3 a5 15. Re3 a4 16. Nxc6 Bxc6 17. Nd4 Bd7 18. Bc4 Bg7 19. Ne2 Rc8 20. b3 {½-½ (45) Saric,I (2646)-Li,C (2683) Chess.com INT 2020}) 14... Na5 {[%emt 0:22:34][%cal Bc6a5,Ba5b7,Bb7c5][%mdl 32]} 15. Ng1 {[%emt 0:14:39] The position is equal.} Nb7 {[%emt 0:09:40]} 16. Bg2 {[%emt 0:04:42]} O-O-O {[%emt 0:01:08]} 17. Bf3 {[%emt 0:07:05]} Nc5 {[%emt 0:03:33]} 18. Nge2 {[%emt 0:05:07]} Kb8 {[%emt 0:16:11]} 19. c3 {[%emt 0:08:05]} e5 {[%emt 0:05:38]} 20. Nc2 {[%emt 0:24:36]} b3 {[%emt 0:00:07]} 21. Na3 {[%emt 0:00:04]} (21. axb3 $11 Qxb3 22. Nb4) 21... bxa2+ $19 {[%emt 0:00:55]} 22. Kxa2 {[%emt 0:00:02] [#]} Be6+ $1 {[%emt 0:00:25]} 23. Kb1 {[%emt 0:00:02]} f5 $36 {[%emt 0:00:23][%cal Bf6f5,Bf5e4][%mdl 2080] Black is on the roll.} ({Not} 23... Qb3 24. Nc1 Qb7 25. Qe3 $17) 24. c4 $2 {[%emt 0:02:15][%mdl 8192] This costs White the game.} (24. exf5 $17 {is more resistant.} Bxf5+ 25. Ka2) 24... fxe4 {[%emt 0:00:36]} 25. Bg2 {[%emt 0:00:01]} Bg7 {[%emt 0:03:51] ...exf4 is the strong threat.} 26. f5 {[%emt 0:04:04]} Bxf5 {[%emt 0:01:19] [#] Threatens to win with ...e3+.} 27. Nc2 {[%emt 0:00:04]} (27. Qc2 $142) 27... Nd3 {[%emt 0:01:58][%csl Gd3][%cal Rb6b2] Black is clearly winning.} 28. Qc3 {[%emt 0:03:12]} d5 {[%emt 0:00:50][%cal Bd6d5,Bd5d4,Bd4d3][%mdl 32]} 29. Rhf1 {[%emt 0:02:15]} d4 {[%emt 0:00:39]} 30. Qa3 {[%emt 0:00:05]} Bg6 {[%emt 0:00:12]} 31. Bxe4 {[%emt 0:01:37]} Bxe4 {[%emt 0:00:19]} 32. Rxd3 {[%emt 0:00:08]} Bxd3 {[%emt 0:00:17]} 33. Qxd3 {[%emt 0:00:04]} e4 {[%emt 0:00:21]} 34. Qxe4 {[%emt 0:01:40]} d3 {[%emt 0:00:07][%csl Gg7][%cal Rb6b2]} 35. Qf4+ {[%emt 0:01:20]} Rd6 {[%emt 0:00:13] Weighted Error Value: White=1.09/Black=0.14 (very precise)} 0-1

[Event "Hungarian Youth-ch U14 2022"]
[Site "Eger"]
[Date "2022.07.26"]
[Round "4.2"]
[White "Csernyik, Mark"]
[Black "Turcsanyi, Vince Gergo"]
[Result "1/2-1/2"]
[ECO "C44"]
[WhiteElo "2022"]
[BlackElo "2117"]
[Annotator "TA"]
[PlyCount "137"]
[EventDate "2022.07.21"]
[EventType "tourn"]
[EventCountry "HUN"]
[SourceTitle "playchess.com"]
[Source "ChessBase"]
[SourceQuality "1"]
[TimeControl "40/5400+30:1800+30"]

{[%evp 9,137,-60,-31,-31,-25,-19,-22,-24,0,-13,-12,0,0,-57,-51,-66,-68,-68,-61,-64,-57,-52,-58,-124,-78,-72,-78,-69,-68,-129,-135,-122,0,-64,-55,-64,-66,-58,-58,-59,-66,-66,0,-50,-41,-60,0,0,0,-8,0,0,0,-84,-2,-31,252,265,259,144,151,152,147,159,128,-7,-5,-18,-11,-120,-130,-270,-165,-142,-151,-329,-300,-324,-315,-373,-373,-348,-331,-270,-66,-79,-72,-81,-87,-100,-27,-66,-16,-24,0,0,0,0,0,0,0,0,0,0,0,0,0,0,0,0,0,0,0,0,0,0,0,0,0,0,0,0,0,0,0,0,0,0,0,0]} 1. e4 {[%emt 0:00:32]} e5 {[%emt 0:00:36][%cal Be7e5,Be5d4,Bd4c3][%mdl 32]} 2. Nf3 {[%emt 0:00:07]} Nc6 {[%emt 0:00:05]} 3. d4 {[%emt 0:00:04]} exd4 {[%emt 0:00:09]} 4. Bb5 {[%emt 0:00:02]} a6 {[%emt 0:06:12]} 5. Ba4 {[%emt 0:00:40]} Bb4+ {[%emt 0:09:05][%cal Bf8b4,Bb4a5,Ba5b6][%mdl 32]} 6. c3 {[%emt 0:00:36] C44: Ponziani Opening and Scotch Gambit.} dxc3 {[%emt 0:00:27]} 7. O-O {[%emt 0:01:08]} Nge7 {[%emt 0:01:55]} 8. a3 {[%emt 0:02:02]} Ba5 {[%emt 0:05:04]} 9. b4 {[%emt 0:00:16]} Bb6 {[%emt 0:00:14]} 10. Nxc3 {[%emt 0:00:10]} O-O {[%emt 0:04:42]} 11. Bb2 {[%emt 0:04:47]} (11. Nd5 $11) 11... d6 $15 {[%emt 0:05:22]} 12. Nd5 {[%emt 0:02:22]} Nxd5 {[%emt 0:03:11] [#]} 13. exd5 $146 {[%emt 0:00:26]} ({Predecessor:} 13. Qxd5 Bg4 14. Nd2 Be6 15. Qd3 Ne5 16. Qg3 Qf6 17. Kh1 Qh6 18. f4 Nc4 19. Nxc4 Bxc4 20. Rfd1 c6 21. Rxd6 f6 22. Rad1 Bc7 {0-1 (22) Duarte,T-Veloso,P (2035) Sao Paulo 1995}) 13... Ne7 {[%emt 0:00:51]} 14. Qd2 {[%emt 0:06:17]} Ng6 {[%emt 0:13:50]} 15. Bc2 {[%emt 0:03:37]} Bg4 {[%emt 0:07:40] Strongly threatening ...Bxf3.} 16. Nd4 {[%emt 0:03:40]} (16. Qc3 $15 f6 17. h3 Bxf3 18. Qxf3) 16... Qh4 {[%emt 0:05:07]} (16... Qf6 $142 $1 17. Rae1 Bd7) 17. Rae1 $17 {[%emt 0:08:22]} Qh5 {[%emt 0:07:46]} 18. h3 {[%emt 0:03:00]} Bd7 {[%emt 0:02:17]} 19. Bxg6 {[%emt 0:05:48]} ({Better is} 19. Qc3 $15 Rfe8 20. a4) 19... Qxg6 {[%emt 0:03:28]} 20. Re3 {[%emt 0:00:28]} Qh5 {[%emt 0:01:10]} (20... Qg5 $17 21. Qc3 f6) 21. Rg3 {[%emt 0:01:04]} (21. Re7 $11 Bb5 22. Nxb5 axb5 23. Rfe1) 21... f6 $15 {[%emt 0:02:10]} 22. Ne6 {[%emt 0:02:09]} Bxe6 {[%emt 0:02:15]} 23. dxe6 {[%emt 0:00:06]} Rae8 {[%emt 0:01:23]} 24. Re1 {[%emt 0:01:59]} Qf5 {[%emt 0:02:56] Prevents Qf4.} 25. Rf3 $1 {[%emt 0:01:13]} (25. e7 $2 Rf7 26. Bd4 (26. Rf3 $2 Qd7 $19) 26... Bxd4 27. Qxd4 Rfxe7 28. Rxe7 Rxe7 $19) 25... Qh5 {[%emt 0:01:07]} 26. Rg3 {[%emt 0:02:16]} (26. e7 Rf7 27. Qd1 (27. g4 $2 Qb5 $19) 27... Kh8 $17) 26... Kh8 {[%emt 0:04:44]} 27. a4 {[%emt 0:02:03]} a5 {[%emt 0:02:19]} (27... Re7 $15) 28. b5 $40 {[%emt 0:00:52][%mdl 128] White has some attack.} (28. e7 Rf7 29. Qf4 (29. bxa5 $2 Bxa5 30. Bc3 Bxc3 $19) 29... axb4 $15) 28... Re7 {[%emt 0:01:53]} 29. Bc3 {[%emt 0:02:01]} Ra8 {[%emt 0:06:06]} 30. Qf4 {[%emt 0:06:04][%cal Oc3f6] aiming for Bxf6!} Rf8 {[%emt 0:00:06]} 31. h4 {[%emt 0:01:07]} (31. Bd4 $11) 31... d5 {[%emt 0:01:08]} (31... Qd5 $17 32. Qg4 h5) 32. Bb2 {[%emt 0:00:58] And now Ba3 would win.} c6 $2 {[%emt 0:00:38][%mdl 8192]} (32... Bc5 $15) 33. Ba3 $1 $18 {[%emt 0:02:10]} Bc7 {[%emt 0:00:31]} 34. Qg4 {[%emt 0:02:35]} (34. Qd2 $1 $18) 34... Qxg4 $16 {[%emt 0:00:31]} 35. Rxg4 {[%emt 0:00:06]} Rfe8 {[%emt 0:00:25]} 36. Bxe7 {[%emt 0:00:15] White is more active.} Rxe7 {[%emt 0:00:00][%mdl 4096] Endgame KRR-KRB} 37. f4 {[%emt 0:01:43]} (37. h5 $16) 37... h5 $11 {[%emt 0:00:59]} 38. Rg3 {[%emt 0:00:36] Black must now prevent bxc6.} Bxf4 {[%emt 0:00:11]} 39. Rb3 {[%emt 0:01:36] [#]} (39. Rf3 $11 {remains equal.} Be5 40. bxc6 bxc6 41. Kf1) 39... c5 $1 $17 {[%emt 0:00:34][%cal Bc6c5,Bc5c4][%mdl 32]} 40. b6 {[%emt 0:00:00]} (40. g3 $17 c4 41. Rbb1) 40... Bd2 {[%emt 0:00:00]} 41. Rd1 {[%emt 0:01:07]} c4 {[%emt 0:04:02]} 42. Rb5 {[%emt 0:02:07]} (42. Rxd2 $17 cxb3 43. Rxd5) 42... c3 $19 {[%emt 0:25:26]} 43. Rxd5 {[%emt 0:00:29]} Rxe6 {[%emt 0:01:19] Hoping for ...Be3+.} 44. R1xd2 {[%emt 0:01:23]} cxd2 {[%emt 0:00:07]} 45. Rxd2 {[%emt 0:00:07]} Rxb6 {[%emt 0:00:12] KR-KR} 46. Rd5 {[%emt 0:00:05] [#]} g6 {[%emt 0:00:13]} ({Black should try} 46... Rb1+ $1 $19 47. Kf2 b6 48. Rxh5+ Kg8) 47. Rxa5 $15 {[%emt 0:00:11]} Ra6 {[%emt 0:01:10]} 48. Rb5 {[%emt 0:00:55]} Rxa4 {[%emt 0:00:06]} 49. Rb6 {[%emt 0:00:16]} Rc4 {[%emt 0:02:39]} (49... Rg4 $17 {Threatens to win with ...Kg7.} 50. Kf2 Rxh4 51. Rxf6 Kg7) 50. g3 {[%emt 0:03:23]} Rc7 {[%emt 0:00:36]} ({Black should play} 50... Kg7 $15) 51. Rxf6 $11 {[%emt 0:00:07]} Kg7 {[%emt 0:00:31]} 52. Rb6 {[%emt 0:00:09] The position is equal.} Kh7 {[%emt 0:00:29]} 53. Kf2 {[%emt 0:00:13]} Rg7 {[%emt 0:00:15]} 54. Kf3 {[%emt 0:01:09]} Kg8 {[%emt 0:00:42]} 55. Kf4 {[%emt 0:00:38]} Rf7+ {[%emt 0:00:32]} 56. Kg5 {[%emt 0:01:01]} Kh7 {[%emt 0:00:18][%csl Gg6][%cal Rf7f5]} 57. g4 {[%emt 0:00:29] Against Rf5+} (57. Rxg6 Rg7 58. Rxg7+ Kxg7 59. Kf5 b5 60. Ke5 Kg6 61. Ke4 Kf6 62. Kf4 Kg7 63. Kf3 b4 64. Ke3 Kf6 65. Ke4 b3 66. Kd3 Kf5 67. Kc3 Kg4 68. Kxb3 Kxg3 69. Kc4 Kxh4 70. Kd3 Kg3 71. Kc4 Kf3 72. Kd5 h4 73. Ke6 h3 74. Kd7 Ke4 75. Ke6 h2 76. Ke7 h1=Q 77. Kf6 Qa1+ 78. Kf7 Qe5 79. Kf8 Kf5 80. Kg8 Qc7 81. Kh8 Kg6 82. Kg8 Qg7#) 57... hxg4 {[%emt 0:00:26]} 58. Kxg4 {[%emt 0:00:10]} Rc7 {[%emt 0:00:15]} 59. Kg5 $1 {[%emt 0:00:31]} Rc5+ {[%emt 0:00:21]} 60. Kg4 {[%emt 0:00:21]} Rc7 {[%emt 0:00:06]} 61. Kg5 {[%emt 0:01:08]} Rd7 {[%emt 0:00:23]} 62. Rb5 {[%emt 0:01:37]} (62. Rxg6 {is a self mate.} Rd5+ 63. Kf6 Rd6+ 64. Ke5 Rxg6 65. h5 Rc6 66. Kd5 Rc8 67. Ke5 b5 68. Kd5 b4 69. Ke6 b3 70. Kd7 Rc3 71. Ke7 b2 72. Kf6 Re3 73. Kf5 b1=Q+ 74. Kf6 Qf1+ 75. Kg5 Rg3+ 76. Kh4 Qh3#) 62... Re7 {[%emt 0:01:27]} 63. Kf6 {[%emt 0:00:53]} Rc7 {[%emt 0:00:33]} 64. Kg5 {[%emt 0:00:36]} Rd7 {[%emt 0:00:16]} 65. Rb6 {[%emt 0:00:37]} Rd5+ {[%emt 0:00:12]} 66. Kg4 {[%emt 0:00:05]} Rd4+ {[%emt 0:00:17]} 67. Kg5 {[%emt 0:00:13]} Rd7 {[%emt 0:00:12]} 68. Rb5 {[%emt 0:00:45]} (68. Rxg6 {gets mated.} Rd5+ 69. Kf6 Rd6+ 70. Ke5 Rxg6 71. h5 Rc6 72. Kd5 Rc8 73. Ke6 b5 74. h6 b4 75. Kd7 Rc1 76. Ke7 b3 77. Kf6 b2 78. Ke5 b1=Q 79. Kd4 Kxh6 80. Ke5 Qd3 81. Kf6 Re1 82. Kf7 Qf5+ 83. Kg8 Re8#) 68... Rc7 {[%emt 0:00:06]} 69. Rb6 {[%emt 0:00:23] Black had all chances to win.  Weighted Error Value: White=0.28 (precise) /Black=0.30} 1/2-1/2